bitfinex/quotes_ETHUSD_20240714
["timestamp","ask_amount","ask_price","bid_price","bid_amount"]
[1720918839557,1.08446038,3195.4,3194.9,2.287]
[1720918839706,1.08446038,3195.3,3194.9,2.287]
[1720918839908,0.32793589,3195.5,3194.9,2.287]
[1720918840203,1.084325,3195.4,3194.9,2.287]
[1720918840431,1.084325,3195.3,3195.1,2.287]
[1720918840611,0.32793589,3195.5,3195.1,2.287]
[1720918840939,1.08429481,3195.4,3195.2,0.06259073]
[1720918841157,0.32793589,3195.5,3195.2,0.06259073]
[1720918841319,1.08425803,3195.4,3195.3,2.287]
[1720918841644,2.29,3196.6,3195.3,2.52195907]
[1720918841645,0.32788183,3196.0,3195.3,2.52195907]
[1720918841850,1.08422382,3195.9,3195.3,2.287]
[1720918842021,1.08422382,3195.8,3195.3,2.287]
[1720918842225,1.08422382,3195.7,3195.3,2.287]
[1720918842412,1.08422382,3195.6,3195.3,2.287]
[1720918842616,1.08422382,3195.5,3195.3,2.287]
[1720918842921,0.32788183,3196.0,3195.3,2.5157]
[1720918842922,1.08422382,3195.4,3195.3,2.5157]
[1720918843103,0.32788183,3196.0,3195.3,2.5157]
[1720918843104,1.08422382,3195.9,3195.3,2.5157]
[1720918843312,1.08422382,3195.8,3195.3,2.5157]
[1720918843516,1.08422382,3195.7,3195.3,2.5157]
[1720918843724,1.08422382,3195.9,3195.4,0.501944]
[1720918843944,1.08422382,3195.8,3195.4,0.501944]
[1720918844251,0.32788183,3196.0,3195.4,0.501944]
[1720918844252,1.08422382,3195.7,3195.4,0.501944]
[1720918844543,1.08417267,3195.6,3195.4,0.501944]
[1720918844748,0.32788183,3196.0,3195.5,0.3017644]
[1720918845042,1.08413419,3195.9,3195.5,0.3017644]
[1720918845248,1.08413419,3195.8,3195.5,0.3017644]
[1720918845417,1.08413419,3195.7,3195.5,0.3017644]
[1720918845745,1.08413419,3195.6,3195.5,0.3017644]
[1720918845944,1.08413419,3195.9,3195.5,0.3017644]
[1720918846148,1.08413419,3195.8,3195.5,0.3017644]
[1720918846348,0.32788183,3196.0,3195.5,0.3017644]
[1720918846659,1.08415795,3195.9,3195.5,0.3017644]
[1720918846875,1.08415795,3195.8,3195.5,0.3017644]
[1720918847175,1.08415795,3195.7,3195.5,0.3017644]
[1720918847340,1.08415795,3195.9,3195.5,0.3017644]
[1720918847668,0.32788183,3196.0,3195.5,0.3017644]
[1720918847669,1.08415795,3195.8,3195.5,0.3017644]
[1720918847872,1.08415795,3195.9,3195.5,0.3017644]
[1720918848022,0.32788183,3196.0,3195.5,0.3017644]
[1720918848023,1.08415795,3195.7,3195.5,0.3017644]
[1720918848356,1.08415795,3195.6,3195.5,0.3017644]
[1720918848525,1.08415795,3195.9,3195.5,0.3017644]
[1720918850167,1.08415795,3195.9,3195.6,2.287]
[1720918850463,1.08415795,3195.9,3195.7,0.25887644]
[1720918851226,1.08414072,3195.8,3195.6,2.287]
[1720918851445,1.08414072,3195.7,3195.6,2.287]
[1720918851645,0.32788183,3196.0,3195.2,3.0]
[1720918851646,1.08414072,3195.9,3195.2,3.0]
[1720918851957,1.08414072,3195.8,3195.2,3.0]
[1720918852181,0.32788183,3196.0,3195.1,2.287]
[1720918852182,1.08414072,3195.9,3195.1,2.287]
[1720918852324,1.08414072,3195.8,3195.1,2.8157]
[1720918852519,1.08414072,3195.9,3195.2,3.0]
[1720918852747,1.08414072,3195.8,3195.2,3.0]
[1720918853024,1.08414072,3195.7,3195.2,3.0]
[1720918853354,1.08414072,3195.6,3195.2,3.0]
[1720918853541,1.08414072,3195.9,3195.2,3.58157]
[1720918854551,0.32788183,3196.0,3195.2,3.0]
[1720918854757,0.32788183,3196.0,3195.1,2.287]
[1720918854758,1.08426391,3195.9,3195.1,2.287]
[1720918854953,0.32788183,3196.0,3195.1,2.287]
[1720918855223,1.08426414,3195.9,3195.1,2.287]
[1720918855420,1.08426414,3195.8,3195.1,2.287]
[1720918855624,1.08426414,3195.7,3195.1,2.287]
[1720918855825,1.08426414,3195.9,3195.1,2.287]
[1720918856157,0.32788183,3196.0,3195.1,2.287]
[1720918856158,1.08426414,3195.8,3195.1,2.287]
[1720918856363,1.08426414,3195.7,3195.1,2.5157]
[1720918856530,1.08426414,3196.2,3195.2,3.0]
[1720918856734,1.08426414,3196.2,3196.0,1.898]
[1720918857680,2.29,3196.3,3196.0,1.898]
[1720918857975,1.08426163,3196.2,3196.0,1.898]
[1720918858264,1.08426163,3196.1,3196.0,1.898]
[1720918860670,0.32788657,3196.5,3196.0,1.898]
[1720918860834,1.08418587,3196.1,3196.0,1.898]
[1720918861167,3.51988587,3196.1,3196.0,1.898]
[1720918861729,1.08418587,3196.1,3196.0,1.898]
[1720918862361,1.08418587,3196.1,3195.6,1.898]
[1720918862561,1.08418587,3196.0,3195.6,1.898]
[1720918862775,1.08418587,3196.3,3195.6,1.898]
[1720918862985,1.08418587,3196.2,3195.6,1.898]
[1720918863139,1.08418587,3196.3,3195.6,1.898]
[1720918863471,2.4357,3196.4,3195.6,1.898]
[1720918863785,1.08430371,3196.3,3195.6,1.898]
[1720918863936,1.08430371,3196.2,3195.6,1.898]
[1720918864140,1.08430371,3196.1,3195.6,1.898]
[1720918864440,1.08430371,3196.0,3195.6,1.898]
[1720918864774,1.08430371,3195.9,3195.6,1.898]
[1720918864970,1.08430371,3195.8,3195.6,1.898]
[1720918865266,2.4357,3196.4,3195.6,1.898]
[1720918865267,1.08430371,3195.7,3195.6,1.898]
[1720918865471,1.08430371,3196.3,3195.6,1.898]
[1720918865691,1.08430371,3196.2,3195.6,1.898]
[1720918865838,1.08430371,3196.1,3195.6,1.898]
[1720918866039,1.08430371,3196.3,3195.6,1.898]
[1720918866240,1.08430371,3196.2,3195.6,1.898]
[1720918866439,2.4357,3196.4,3195.6,1.898]
[1720918866440,1.08430371,3196.3,3195.6,1.898]
[1720918866671,2.4357,3196.4,3195.6,1.898]
[1720918866672,1.08430371,3196.2,3195.6,1.898]
[1720918866867,2.4357,3196.4,3195.6,1.898]
[1720918867079,1.08424412,3196.3,3196.0,1.898]
[1720918867283,0.32788657,3196.5,3196.0,1.898]
[1720918867590,1.08422964,3196.4,3196.0,1.898]
[1720918867746,1.08422964,3196.3,3196.0,1.898]
[1720918868056,1.08422964,3196.2,3196.0,1.898]
[1720918868252,1.08422964,3196.1,3196.0,1.898]
[1720918869597,1.08422964,3196.1,3195.4,2.4755]
[1720918869598,1.08422964,3196.1,3195.6,1.898]
[1720918869879,1.08423723,3196.0,3195.6,1.898]
[1720918870090,2.76358657,3196.5,3195.6,1.898]
[1720918870385,1.08426857,3196.4,3195.6,1.898]
[1720918870548,1.08426857,3196.3,3195.6,1.898]
[1720918870744,1.08426857,3196.2,3195.6,1.898]
[1720918871048,1.08426857,3196.1,3195.6,1.898]
[1720918871241,1.08426857,3196.0,3195.6,1.898]
[1720918871459,1.08426857,3195.9,3195.6,1.898]
[1720918871751,1.08426857,3195.8,3195.6,1.898]
[1720918872071,1.08426857,3195.7,3195.1,2.4755]
[1720918872389,1.08426857,3195.6,3195.1,2.4755]
[1720918872576,1.08426857,3195.9,3195.1,2.4755]
[1720918872873,1.08426857,3195.8,3195.1,2.91285]
[1720918873046,1.08426857,3195.7,3195.1,2.91285]
[1720918873247,1.08426857,3195.9,3195.1,2.91285]
[1720918873480,1.08433856,3195.8,3195.1,2.91285]
[1720918873778,1.08433856,3195.7,3195.1,2.91285]
[1720918873975,1.08433856,3195.6,3195.2,0.481085]
[1720918874156,1.08433856,3195.5,3195.2,0.481085]
[1720918874351,1.08433856,3195.4,3195.2,0.481085]
[1720918874679,1.08433856,3195.3,3195.2,0.481085]
[1720918875247,1.08433856,3195.3,3195.2,2.956585]
[1720918876879,1.08427561,3195.3,3195.2,2.956585]
[1720918877080,1.08427561,3195.3,3195.2,5.460335]
[1720918877280,0.32789949,3196.1,3195.2,5.379085]
[1720918877583,2.4133,3197.2,3196.1,2.2878]
[1720918877778,0.32784373,3197.0,3196.4,1.898]
[1720918878682,9.8333,3197.8,3196.4,1.898]
[1720918879049,13.08182334,3197.8,3196.4,1.898]
[1720918879267,2.4133,3197.7,3196.1,2.2878]
[1720918879468,5.66182334,3197.7,3196.1,2.2878]
[1720918879675,2.4133,3197.6,3196.1,2.2878]
[1720918880258,2.4133,3197.6,3195.9,1.898]
[1720918880593,2.9633,3197.5,3195.9,1.898]
[1720918880957,2.4133,3197.3,3195.5,4.1858]
[1720918881145,2.4133,3197.1,3195.5,4.1858]
[1720918881345,2.4133,3196.9,3195.5,4.1858]
[1720918881547,0.55,3196.8,3195.5,4.1858]
[1720918883248,0.55,3196.8,3195.5,4.53408383]
[1720918884164,0.55,3196.8,3195.5,4.1858]
[1720918886181,2.4133,3196.9,3195.5,4.1858]
[1720918886572,2.4133,3196.9,3195.9,1.898]
[1720918888015,2.4133,3196.9,3196.0,2.2878]
[1720918888535,0.32785528,3196.8,3196.0,2.2878]
[1720918888679,0.32785528,3196.8,3196.1,0.41858]
[1720918890203,0.32785528,3196.8,3196.0,2.2878]
[1720918891919,0.32785528,3196.8,3196.3,1.898]
[1720918892421,0.32785528,3196.8,3196.4,2.2878]
[1720918895029,0.32785528,3196.8,3196.7,4.1858]
[1720918895190,0.32785528,3196.8,3196.7,4.24835684]
[1720918895376,0.32785528,3196.8,3196.7,4.1858]
[1720918895576,0.32785528,3196.8,3196.7,4.86090068]
[1720918897823,0.32785528,3196.8,3196.7,7.36348068]
[1720918897994,0.32785528,3196.8,3196.7,10.36348068]
[1720918898320,2.4133,3198.0,3196.9,2.50239]
[1720918898495,2.4133,3198.0,3197.0,5.752579]
[1720918898496,0.32775852,3197.2,3197.0,5.752579]
[1720918898693,0.1165051,3198.1,3197.1,4.3798]
[1720918899080,0.32775473,3197.2,3197.1,4.3798]
[1720918899277,0.1165051,3198.1,3195.7,0.80922]
[1720918899278,7.37050956,3197.5,3195.7,0.80922]
[1720918899482,7.37050956,3197.5,3194.3,0.98268842]
[1720918899483,1.5,3195.7,3194.3,0.98268842]
[1720918899682,1.5,3195.7,3193.2,1.63980715]
[1720918899683,4.36831509,3195.6,3193.6,1.898]
[1720918899881,1.0846169,3195.5,3193.6,1.898]
[1720918900086,2.2850447,3195.2,3193.6,1.898]
[1720918900318,0.06255781,3195.1,3194.0,1.898]
[1720918900654,1.2494201,3195.1,3194.0,1.898]
[1720918900784,1.18686229,3195.0,3194.0,1.898]
[1720918900985,1.18686229,3194.9,3194.0,1.898]
[1720918901182,1.18686229,3194.8,3194.0,1.898]
[1720918901423,1.18686229,3194.7,3194.0,1.898]
[1720918901630,1.18686229,3194.6,3194.0,1.898]
[1720918901923,1.18686229,3194.5,3194.0,1.898]
[1720918902099,1.18686229,3194.4,3194.0,1.898]
[1720918902418,1.08479967,3194.3,3194.0,1.898]
[1720918902626,2.28491053,3195.3,3193.7,2.535]
[1720918902627,1.08479967,3195.0,3193.7,2.535]
[1720918902825,3.0,3195.5,3193.7,2.535]
[1720918902826,1.18680724,3194.9,3193.7,2.7885]
[1720918903123,1.18680689,3194.8,3193.7,2.7885]
[1720918903294,1.18680689,3194.7,3193.7,2.7885]
[1720918903485,1.18680689,3194.6,3193.7,2.7885]
[1720918903686,2.34341268,3195.4,3193.7,2.7885]
[1720918903687,1.18680689,3194.5,3193.7,2.7885]
[1720918903988,1.08476629,3194.4,3193.7,2.535]
[1720918904186,1.08476629,3195.3,3193.7,2.535]
[1720918904414,0.16460351,3195.2,3193.7,2.535]
[1720918904617,1.18681199,3195.1,3193.7,2.535]
[1720918904930,0.06255781,3195.2,3193.7,2.535]
[1720918904931,1.18681199,3195.0,3193.7,2.535]
[1720918905083,1.18681199,3194.9,3193.7,2.535]
[1720918905388,1.18681199,3194.8,3193.7,2.535]
[1720918905588,1.18681199,3194.7,3193.7,2.535]
[1720918905894,1.18681199,3194.6,3193.7,2.535]
[1720918906219,1.18681199,3194.5,3193.7,2.535]
[1720918906418,1.08494211,3194.4,3193.7,2.535]
[1720918906623,2.35,3194.7,3192.9,2.535]
[1720918906820,2.35,3194.7,3192.9,3.06807]
[1720918906821,1.08496537,3194.3,3192.9,3.06807]
[1720918907030,1.18701584,3194.2,3192.9,3.06807]
[1720918907330,1.08496537,3194.1,3192.9,3.06807]
[1720918907532,2.35,3194.7,3192.9,3.06807]
[1720918907703,1.18709199,3194.6,3193.0,0.554987]
[1720918907899,2.35,3194.7,3193.0,3.554987]
[1720918907900,1.18709199,3194.5,3193.0,3.554987]
[1720918908157,1.18709199,3194.4,3193.0,3.554987]
[1720918908346,1.08502208,3194.3,3193.0,3.554987]
[1720918908515,0.06255781,3194.5,3193.0,3.554987]
[1720918908516,1.08502208,3194.4,3193.0,3.554987]
[1720918908711,0.43019462,3194.3,3193.0,3.554987]
[1720918909025,1.08502208,3194.2,3192.8,2.4818]
[1720918909233,0.10208688,3194.1,3192.8,2.4818]
[1720918909435,0.10208688,3194.1,3192.7,2.535]
[1720918909436,1.14757989,3194.0,3192.7,2.535]
[1720918909621,1.18732458,3193.9,3192.7,2.535]
[1720918909943,1.14779595,3193.8,3192.7,2.535]
[1720918910135,0.06255781,3193.7,3192.7,2.535]
[1720918910456,0.06255781,3193.7,3192.3,2.535]
[1720918910608,0.06255781,3193.7,3192.3,3.03668]
[1720918911113,0.06255781,3194.2,3192.3,3.03668]
[1720918911408,1.73738254,3194.1,3192.4,3.0]
[1720918911637,1.24994035,3194.0,3192.4,3.0]
[1720918911815,1.08530013,3193.9,3192.4,3.0]
[1720918912013,1.08530013,3193.8,3192.5,0.603668]
[1720918912212,0.06255781,3193.8,3192.5,0.603668]
[1720918912846,0.06255781,3194.0,3192.5,0.603668]
[1720918913050,0.06255781,3194.1,3192.7,2.535]
[1720918913208,1.08520687,3194.0,3192.7,2.535]
[1720918913414,0.06255781,3194.1,3192.7,2.535]
[1720918917729,0.06255781,3194.1,3192.7,2.8488668]
[1720918921479,0.3281017,3194.3,3193.4,2.535]
[1720918924660,0.3281017,3194.3,3193.8,1.902]
[1720918925156,0.3281017,3194.3,3193.9,0.06261292]
[1720918925387,0.3281017,3194.3,3194.0,0.19646129]
[1720918927665,2.488,3195.8,3194.2,1.902]
[1720918927866,1.0846401,3195.7,3194.7,1.902]
[1720918928070,2.55055781,3196.3,3194.7,1.902]
[1720918928071,1.0846401,3195.6,3194.7,1.902]
[1720918928283,1.0846401,3195.6,3194.4,3.0]
[1720918928284,1.0846401,3195.5,3195.1,1.902]
[1720918928483,1.0846401,3195.4,3195.1,1.902]
[1720918928795,1.08446173,3195.3,3195.1,1.902]
[1720918928991,0.32798287,3195.7,3195.1,1.902]
[1720918929155,1.08443121,3195.6,3195.2,0.06259017]
[1720918929357,1.08436848,3195.5,3195.2,0.19645902]
[1720918929592,1.08436848,3195.4,3195.2,0.19645902]
[1720918929790,1.08436848,3195.3,3195.2,0.19645902]
[1720918929970,0.32798287,3195.7,3195.2,0.19645902]
[1720918930163,1.08433479,3195.6,3195.2,0.19645902]
[1720918930401,1.08433479,3195.5,3195.2,0.19645902]
[1720918930587,1.08433479,3195.4,3195.2,0.19645902]
[1720918930894,0.32798287,3195.7,3195.2,0.19645902]
[1720918931193,1.08434463,3195.6,3195.2,0.19645902]
[1720918931394,0.32798287,3195.7,3195.2,0.19645902]
[1720918931395,1.08434463,3195.5,3195.2,0.19645902]
[1720918931617,1.08434463,3195.6,3195.2,0.19645902]
[1720918931910,1.0843403,3195.5,3195.3,0.2654459]
[1720918932081,0.32798287,3195.7,3195.3,0.2654459]
[1720918932257,1.08433931,3195.6,3195.3,0.2654459]
[1720918932464,0.32798287,3195.7,3195.3,0.2654459]
[1720918932698,1.08434186,3195.6,3195.3,0.2654459]
[1720918932884,0.32798287,3195.7,3195.3,0.2654459]
[1720918933084,1.0843443,3195.6,3195.3,0.2654459]
[1720918933263,0.32798287,3195.7,3195.3,0.2654459]
[1720918933464,1.08434276,3195.6,3195.3,0.2654459]
[1720918933681,0.32798287,3195.7,3195.3,0.2654459]
[1720918933998,1.08434538,3195.6,3195.3,0.2654459]
[1720918934160,0.32798287,3195.7,3195.3,0.2654459]
[1720918934357,0.32798287,3195.7,3195.4,2.533]
[1720918934558,0.32798287,3195.7,3195.5,0.27984459]
[1720918935181,0.32798287,3195.7,3195.6,0.06258051]
[1720918935357,0.32798287,3195.7,3195.6,5.57402051]
[1720918935571,2.55055781,3197.6,3195.8,2.50327]
[1720918935892,0.3278721,3196.7,3196.3,2.533]
[1720918936099,2.488,3197.6,3196.3,2.533]
[1720918936272,0.32786039,3196.7,3196.3,2.533]
[1720918936664,2.488,3197.6,3196.3,2.533]
[1720918936857,0.32785709,3196.7,3196.3,2.533]
[1720918937062,0.06255781,3197.4,3196.3,2.533]
[1720918937262,0.32786153,3196.7,3195.9,2.533]
[1720918937498,0.32786153,3196.7,3196.0,3.0]
[1720918937674,0.06255781,3197.2,3196.0,3.0]
[1720918937868,0.32786224,3196.7,3196.0,3.0]
[1720918938078,0.06255781,3197.0,3196.0,3.0]
[1720918938271,0.32786907,3196.7,3196.0,3.0]
[1720918938607,0.06255781,3196.6,3195.5,2.533]
[1720918938789,0.06255781,3196.6,3195.2,2.2501]
[1720918938994,0.06255781,3196.6,3195.3,2.533]
[1720918938995,1.08422829,3196.5,3195.3,2.533]
[1720918939165,0.06255781,3196.4,3195.3,2.533]
[1720918940086,0.32786907,3196.7,3195.7,2.533]
[1720918940285,1.08423781,3196.6,3195.7,2.533]
[1720918940469,1.14679562,3196.5,3195.7,2.533]
[1720918940663,0.06255781,3196.5,3195.7,2.533]
[1720918942211,0.39042688,3196.7,3195.7,2.533]
[1720918942408,1.08424283,3196.6,3195.7,2.533]
[1720918942567,1.08424283,3196.5,3195.7,2.533]
[1720918942771,0.32786907,3196.7,3195.7,2.7863]
[1720918943108,0.32786907,3196.7,3196.0,2.533]
[1720918944412,0.32786907,3196.7,3195.2,10.28685]
[1720918944720,0.32786907,3196.7,3195.3,2.50367]
[1720918945006,0.32786907,3196.7,3195.4,3.0]
[1720918945180,0.32786907,3196.7,3195.5,0.550367]
[1720918945382,0.32786907,3196.7,3195.7,2.533]
[1720918946487,1.08414236,3196.6,3195.7,2.533]
[1720918946663,0.32786907,3196.7,3195.7,2.533]
[1720918946864,1.08415767,3196.6,3195.7,2.533]
[1720918947115,0.06255781,3196.6,3195.7,2.533]
[1720918947320,1.08416748,3196.5,3195.7,2.533]
[1720918947471,0.06255781,3196.6,3195.7,2.533]
[1720918947816,2.4815,3196.4,3195.4,3.0]
[1720918947998,0.06255781,3196.3,3195.3,3.0]
[1720918948400,1.08427374,3196.2,3195.3,3.0]
[1720918948714,2.4815,3196.4,3195.3,3.0]
[1720918948715,0.06255781,3196.1,3195.3,3.0]
[1720918949510,0.06255781,3196.3,3195.3,3.0]
[1720918949713,1.08426578,3196.2,3195.3,3.0]
[1720918949921,0.32786907,3196.7,3195.7,2.533]
[1720918950072,1.08420694,3196.6,3195.7,2.533]
[1720918950267,1.08420694,3196.5,3195.7,2.533]
[1720918950474,1.08420694,3196.4,3195.7,2.533]
[1720918950673,1.08420694,3196.3,3195.7,2.533]
[1720918950906,0.32786907,3196.7,3195.7,2.533]
[1720918951110,1.08414717,3196.6,3195.8,0.06257613]
[1720918951278,0.32786907,3196.7,3196.2,2.533]
[1720918951481,1.0840765,3196.6,3196.2,2.533]
[1720918951672,0.32786907,3196.7,3196.2,2.533]
[1720918951873,1.08403298,3196.6,3196.2,2.533]
[1720918952078,0.32786907,3196.7,3196.2,2.533]
[1720918952279,1.08403387,3196.6,3196.2,2.533]
[1720918952512,1.08403387,3196.5,3196.2,2.533]
[1720918952820,0.32786907,3196.7,3196.4,1.898]
[1720918953034,1.08400593,3196.6,3196.4,1.898]
[1720918953188,1.08400593,3196.5,3196.4,1.898]
[1720918953391,1.08400593,3196.6,3196.4,1.898]
[1720918953626,0.32786907,3196.7,3196.4,1.898]
[1720918953627,1.08400593,3196.5,3196.4,1.898]
[1720918954796,1.08400131,3196.5,3196.4,1.898]
[1720918955973,1.08400131,3196.5,3196.4,2.0878]
[1720918957406,1.08400131,3196.5,3196.4,1.898]
[1720918957995,0.32786907,3196.7,3196.4,1.898]
[1720918958208,1.08390591,3196.6,3196.4,1.898]
[1720918958411,0.32786907,3196.7,3196.4,1.898]
[1720918958717,1.08390694,3196.6,3196.4,1.898]
[1720918958921,1.08390694,3196.5,3196.4,1.898]
[1720918959581,1.08390694,3196.6,3196.4,1.898]
[1720918961308,0.32786907,3196.7,3196.4,1.898]
[1720918961309,1.08395127,3196.5,3196.4,1.898]
[1720918964495,0.32781811,3197.1,3196.4,1.898]
[1720918964708,1.08393926,3197.0,3196.4,1.898]
[1720918964903,1.08393926,3196.9,3196.4,1.898]
[1720918965107,1.08393926,3197.0,3196.4,1.898]
[1720918966114,0.06255781,3196.9,3196.1,3.0]
[1720918966410,0.06255781,3196.9,3196.0,1.898]
[1720918966411,1.08393926,3196.8,3196.0,1.898]
[1720918967028,1.08398731,3196.7,3196.0,1.898]
[1720918967223,1.08398731,3196.6,3196.0,1.898]
[1720918967518,1.08398731,3196.5,3196.0,1.898]
[1720918967730,1.08398731,3196.9,3196.0,1.898]
[1720918967925,0.06255781,3197.0,3196.0,1.898]
[1720918968218,1.18624031,3196.9,3196.0,1.898]
[1720918968428,0.06255781,3197.0,3196.0,1.898]
[1720918968591,1.08400098,3196.8,3196.0,1.898]
[1720918968793,1.08400098,3196.7,3196.0,1.898]
[1720918968993,1.08400098,3196.9,3196.0,1.898]
[1720918969194,0.1022627,3196.8,3196.0,1.898]
[1720918969502,1.08400098,3196.7,3196.0,1.898]
[1720918969898,1.08400098,3196.9,3196.0,1.898]
[1720918970126,1.18630325,3196.8,3196.0,1.898]
[1720918970337,1.18630325,3196.7,3196.0,1.898]
[1720918970634,1.08400098,3196.6,3196.0,1.898]
[1720918970801,1.08400098,3196.9,3196.0,1.898]
[1720918971153,0.39037592,3197.1,3196.0,1.898]
[1720918971296,1.18627726,3197.0,3196.4,1.898]
[1720918971636,1.18627726,3196.9,3196.4,1.898]
[1720918971845,1.18627726,3196.8,3196.4,1.898]
[1720918972007,1.18627726,3196.7,3196.4,4.3856]
[1720918972195,1.1862836,3196.6,3196.4,4.82416]
[1720918972392,1.08399254,3196.5,3196.4,4.3856]
[1720918973200,1.18631329,3196.5,3196.4,4.3856]
[1720918974737,1.1862299,3196.5,3196.4,4.3856]
[1720918975102,1.1862299,3196.5,3196.4,1.898]
[1720918977339,1.1862299,3196.5,3196.4,2.448]
[1720918977833,0.32781811,3197.1,3196.4,2.448]
[1720918978038,1.18613802,3197.0,3196.4,2.448]
[1720918978207,1.18613802,3196.9,3196.4,2.448]
[1720918978437,0.32781811,3197.1,3196.4,2.448]
[1720918978438,1.18613802,3196.8,3196.4,2.448]
[1720918978649,0.32781811,3197.1,3196.4,2.448]
[1720918978650,1.18613802,3196.7,3196.4,2.448]
[1720918978850,1.18613802,3196.6,3196.4,2.448]
[1720918979052,1.18613802,3196.5,3196.4,2.448]
[1720918980937,1.18611418,3196.5,3196.4,2.448]
[1720918981465,1.186123,3196.5,3196.4,2.448]
[1720918983870,1.18608542,3196.5,3196.4,2.448]
[1720918984070,1.18609761,3196.5,3196.4,5.1768]
[1720918984250,2.4835,3197.9,3196.9,2.50237]
[1720918984251,2.29316783,3197.8,3196.9,2.50237]
[1720918984571,0.3274522,3197.5,3197.4,1.898]
[1720918984725,0.3274522,3197.5,3197.4,2.448]
[1720918984929,2.29316783,3197.9,3197.4,2.448]
[1720918985151,0.32744207,3197.9,3197.5,0.55]
[1720918985865,0.06255781,3197.8,3197.4,1.898]
[1720918986848,0.32744207,3197.9,3197.4,1.898]
[1720918990258,0.38999988,3197.9,3197.4,1.898]
[1720918990455,0.32744207,3197.9,3197.4,1.898]
[1720918991339,0.32744207,3197.9,3197.5,0.55]
[1720918994290,1.08366875,3197.8,3197.5,0.55]
[1720918994480,1.08366875,3197.7,3197.5,0.55]
[1720918994658,1.08366875,3197.8,3197.5,0.55]
[1720918996886,0.06255781,3197.8,3197.4,1.898]
[1720918997054,1.08374612,3197.7,3197.4,1.898]
[1720918997250,1.08374612,3197.6,3197.0,1.898]
[1720918997455,1.08374612,3197.8,3197.1,0.55]
[1720918997678,1.08374612,3197.7,3197.1,0.55]
[1720918997854,2.62237322,3197.9,3197.1,0.55]
[1720918997855,1.08374612,3197.6,3197.1,0.55]
[1720918998074,1.08374612,3197.8,3197.4,1.898]
[1720918998696,1.08374612,3197.8,3197.5,0.55]
[1720919000279,1.08369567,3197.7,3197.5,0.55]
[1720919000589,1.08369567,3197.6,3197.5,0.55]
[1720919003564,0.32744207,3197.9,3197.5,0.55]
[1720919003774,1.08366266,3197.8,3197.5,0.55]
[1720919003983,1.08366266,3197.7,3197.5,0.55]
[1720919004184,1.08366266,3197.6,3197.5,0.55]
[1720919006478,1.08366266,3197.6,3197.4,1.898]
[1720919006683,1.08366266,3197.5,3197.0,1.898]
[1720919006872,1.08373638,3197.4,3197.0,1.898]
[1720919007078,1.08373638,3197.3,3197.0,1.898]
[1720919007261,0.32744207,3197.9,3197.0,1.898]
[1720919007597,1.08372813,3197.8,3197.0,1.898]
[1720919008091,1.08372813,3197.8,3197.1,0.55]
[1720919008422,0.32744207,3197.9,3197.1,0.55]
[1720919008423,1.08372813,3197.7,3197.1,0.55]
[1720919008580,1.08372813,3197.9,3197.1,0.55]
[1720919008784,1.08372813,3197.8,3197.1,0.55]
[1720919009115,1.08372813,3197.7,3197.1,0.55]
[1720919009329,1.08372813,3197.6,3197.1,0.55]
[1720919009474,1.08372813,3197.5,3197.1,0.55]
[1720919009676,1.08372813,3197.4,3197.1,0.55]
[1720919009931,1.08372813,3197.9,3197.1,0.55]
[1720919010135,1.08372813,3197.9,3196.8,3.0]
[1720919010136,2.3871,3197.7,3196.2,2.461]
[1720919010411,2.29646761,3197.5,3196.6,1.898]
[1720919010599,1.14636742,3197.4,3196.7,0.55]
[1720919010802,1.08380961,3197.3,3196.7,0.55]
[1720919011002,1.08380961,3197.2,3196.7,0.55]
[1720919011203,1.08380961,3197.1,3196.7,0.55]
[1720919011389,1.08380961,3197.3,3196.7,0.55]
[1720919011588,1.08380961,3197.2,3196.7,0.55]
[1720919011910,1.08380961,3197.1,3196.7,0.55]
[1720919012102,1.08380961,3197.3,3196.7,0.55]
[1720919012309,1.08380961,3197.2,3196.7,0.55]
[1720919012492,1.08380961,3197.1,3196.7,0.55]
[1720919012688,0.06255781,3197.4,3196.7,0.55]
[1720919012689,1.08380961,3197.3,3196.7,0.55]
[1720919012924,1.08380961,3197.2,3196.7,0.55]
[1720919013134,1.08380961,3197.1,3196.7,0.55]
[1720919013435,1.08392061,3197.0,3196.7,0.55]
[1720919013606,1.08392061,3196.9,3196.7,0.55]
[1720919013815,1.08392061,3196.8,3196.7,0.55]
[1720919016871,1.08392516,3196.8,3196.6,1.898]
[1720919017077,2.3871,3197.7,3196.6,1.898]
[1720919017078,1.08392516,3196.7,3196.6,1.898]
[1720919017233,1.08400745,3196.7,3196.6,1.898]
[1720919018529,1.41143788,3196.7,3196.6,1.898]
[1720919019260,1.41143788,3196.7,3195.6,2.4292]
[1720919019462,1.08400745,3196.6,3196.0,1.898]
[1720919019769,1.14656526,3196.6,3196.1,0.55]
[1720919020065,0.06255781,3196.6,3196.0,1.898]
[1720919020357,1.08410088,3196.5,3196.0,1.898]
[1720919020559,1.08410088,3196.4,3196.0,1.898]
[1720919020727,1.08410088,3196.3,3196.0,1.898]
[1720919020933,1.08410088,3196.2,3196.0,1.898]
[1720919021130,1.08410088,3196.1,3196.0,1.898]
[1720919021356,1.08410088,3196.1,3196.0,2.448]
[1720919023452,1.08410088,3196.1,3196.0,0.55]
[1720919023783,1.08410088,3196.1,3195.7,0.28257454]
[1720919023784,1.08410088,3196.1,3195.8,0.55]
[1720919024072,1.08410088,3196.0,3195.8,0.55]
[1720919024273,1.08410088,3196.2,3195.8,0.55]
[1720919024637,1.08410088,3196.2,3196.1,0.791]
[1720919025068,1.08410088,3196.3,3196.1,0.791]
[1720919025259,1.08410088,3196.2,3195.8,0.55]
[1720919025456,2.3441,3196.4,3196.1,0.791]